bitfinex-derivatives/quotes_BTCF0:USTF0_20230106
["timestamp","ask_amount","ask_price","bid_price","bid_amount"]
[1672996484333,0.0038,16796.0,16795.0,1.5462722]
[1672996484752,0.0038,16796.0,16795.0,1.2455722]
[1672996484958,0.0038,16796.0,16795.0,1.5462722]
[1672996486113,0.0038,16796.0,16795.0,2.03899485]
[1672996486531,0.0038,16796.0,16795.0,1.73829485]
[1672996486750,0.0038,16796.0,16795.0,2.03899485]
[1672996486963,0.0038,16796.0,16795.0,1.90507001]
[1672996488229,0.0038,16796.0,16795.0,1.90506872]
[1672996489592,0.0038,16796.0,16795.0,1.94897528]
[1672996492640,0.00367188,16796.0,16795.0,1.94897528]
[1672996495902,0.00367188,16796.0,16795.0,1.64827528]
[1672996496207,0.00367188,16796.0,16795.0,1.94897528]
[1672996501151,0.00367188,16796.0,16795.0,1.72637018]
[1672996501352,0.00367188,16796.0,16795.0,1.94897528]
[1672996501779,0.00367188,16796.0,16795.0,1.72637018]
[1672996503567,0.00367188,16796.0,16795.0,1.9050969]
[1672996504613,0.00367188,16796.0,16795.0,1.36767717]
[1672996505668,0.00367188,16796.0,16795.0,1.23364882]
[1672996506609,0.00367188,16796.0,16795.0,1.36766829]
[1672996507028,0.00367188,16796.0,16795.0,1.23364882]
[1672996511661,0.00367188,16796.0,16795.0,0.93294882]
[1672996512284,0.00367188,16796.0,16795.0,1.6044209]
[1672996518175,0.00367188,16796.0,16795.0,1.11167554]
[1672996518382,0.00367188,16796.0,16795.0,0.93294882]
[1672996519112,0.00367188,16796.0,16795.0,1.11167554]
[1672996519325,0.00367188,16796.0,16795.0,1.60443731]
[1672996519854,0.00367188,16796.0,16795.0,1.06693949]
[1672996520166,0.00367188,16796.0,16795.0,0.93294882]
[1672996520694,0.00367188,16796.0,16795.0,1.02226948]
[1672996520907,0.00367188,16796.0,16795.0,1.02226958]
[1672996522057,0.00367188,16796.0,16795.0,0.93294882]
[1672996522693,0.00367188,16796.0,16795.0,1.06693949]
[1672996527109,0.00367188,16796.0,16795.0,1.60442504]
[1672996530267,0.00367188,16796.0,16795.0,1.90512504]
[1672996531631,0.00367188,16796.0,16795.0,1.60442504]
[1672996534678,0.00367188,16796.0,16795.0,1.06693579]
[1672996541421,0.00367188,16796.0,16795.0,1.06674431]
[1672996542255,0.00367188,16796.0,16795.0,1.6042468]
[1672996546047,0.00367188,16796.0,16795.0,1.11148406]
[1672996546572,0.00367188,16796.0,16795.0,0.93275734]
[1672996549309,0.00367188,16796.0,16795.0,1.11148406]
[1672996549526,0.00367188,16796.0,16795.0,0.93275734]
[1672996549826,0.00367188,16796.0,16795.0,1.02210226]
[1672996550148,0.00367188,16796.0,16795.0,0.93275734]
[1672996550462,0.00367188,16796.0,16795.0,1.06677472]
[1672996555617,0.00367188,16796.0,16795.0,1.36747472]
[1672996556137,0.00367188,16796.0,16795.0,1.06677472]
[1672996557180,0.00367188,16796.0,16795.0,1.60423518]
[1672996558872,0.00367188,16796.0,16795.0,1.90493518]
[1672996559504,0.00367188,16796.0,16795.0,1.90490919]
[1672996559707,0.00367188,16796.0,16795.0,1.72620846]
[1672996560033,0.00367188,16796.0,16795.0,1.90490877]
[1672996560653,0.00367188,16796.0,16795.0,1.60420877]
[1672996564762,0.00367188,16796.0,16795.0,1.06678093]
[1672996568642,0.00367188,16796.0,16795.0,0.93275734]
[1672996570218,0.00367188,16796.0,16795.0,1.06678171]
[1672996571705,0.00367188,16796.0,16795.0,0.93275734]
[1672996572331,0.00367188,16796.0,16795.0,1.60420316]
[1672996577062,0.00367188,16796.0,16795.0,1.90490316]
[1672996578438,0.0048,16796.0,16795.0,1.89690316]
[1672996578864,0.0008,16796.0,16795.0,1.76590316]
[1672996579068,0.0048,16796.0,16795.0,1.83590316]
[1672996580117,0.0048,16796.0,16795.0,1.53520316]
[1672996584002,0.0048,16796.0,16795.0,0.86375734]
[1672996584205,0.0048,16796.0,16795.0,1.04245765]
[1672996584624,0.0048,16796.0,16795.0,1.53521877]
[1672996587480,0.0048,16796.0,16795.0,0.99777725]
[1672996592626,0.0048,16796.0,16795.0,0.99770976]
[1672996592946,0.0048,16796.0,16795.0,0.40310976]
[1672996594724,0.0048,16796.0,16795.0,0.89585224]
[1672996594938,0.0048,16796.0,16795.0,0.94053264]
[1672996596188,0.0048,16796.0,16795.0,1.24123264]
[1672996602293,0.0048,16796.0,16795.0,0.70382275]
[1672996602500,0.0048,16796.0,16795.0,1.29842275]
[1672996606694,0.0048,16796.0,16795.0,0.99772275]
[1672996607112,0.0048,16796.0,16795.0,0.86368985]
[1672996607314,0.0048,16796.0,16795.0,0.95304604]
[1672996609961,0.0048,16796.0,16795.0,0.99772275]
[1672996615282,0.0048,16796.0,16795.0,0.99769269]
[1672996617392,0.0048,16796.0,16795.0,0.95302201]
[1672996620441,0.0048,16796.0,16795.0,0.35842201]
[1672996621074,0.0048,16796.0,16795.0,0.26908985]
[1672996621387,0.0048,16796.0,16795.0,0.35842201]
[1672996624957,0.0048,16796.0,16795.0,0.40309269]
[1672996631793,0.0048,16796.0,16795.0,0.40306352]
[1672996632002,0.0048,16796.0,16795.0,0.26908985]
[1672996632215,0.0048,16796.0,16795.0,0.40307085]
[1672996638957,0.0048,16796.0,16795.0,0.49240953]
[1672996639371,0.0048,16796.0,16795.0,0.4923193]
[1672996639792,0.0048,16796.0,16795.0,0.26899962]
[1672996647356,0.0048,16796.0,16795.0,0.4923193]
[1672996647770,0.0048,16796.0,16795.0,0.40298062]
[1672996648828,0.0048,16796.0,16795.0,0.49234882]
[1672996651771,0.0048,16796.0,16795.0,0.40298062]
[1672996651981,0.0048,16796.0,16795.0,0.4923493]
[1672996655024,0.0048,16796.0,16795.0,0.26899962]
[1672996662278,0.0048,16796.0,16795.0,0.3583683]
[1672996662497,0.0048,16796.0,16795.0,0.4923493]
[1672996662811,0.0048,16796.0,16795.0,0.40298062]
[1672996665228,0.0048,16796.0,16795.0,0.35836926]
[1672996665546,0.89793932,16796.0,16795.0,0.35836926]
[1672996666273,0.89793932,16796.0,16795.0,0.15936964]
[1672996666274,1.19863932,16796.0,16795.0,0.15936964]
[1672996666480,1.19863932,16796.0,16795.0,0.27]
[1672996666693,1.19863932,16796.0,16795.0,0.07]
[1672996686244,1.19863932,16796.0,16795.0,0.0697644]
[1672996690986,1.49933932,16796.0,16795.0,0.0697644]
[1672996692129,1.19863932,16796.0,16795.0,0.0697644]
[1672996692347,1.49933932,16796.0,16795.0,0.0697644]
[1672996698967,0.89793932,16796.0,16795.0,0.0697644]
[1672996699175,1.49933932,16796.0,16795.0,0.0697644]
[1672996700017,0.89793932,16796.0,16795.0,0.0697644]
[1672996700234,1.49933932,16796.0,16795.0,0.0697644]
[1672996713053,0.89793932,16796.0,16795.0,0.0697644]
[1672996713267,1.49933932,16796.0,16795.0,0.0697644]
[1672996726521,0.89793932,16796.0,16795.0,0.0697644]
[1672996726944,1.49933932,16796.0,16795.0,0.0697644]
[1672996733981,1.49933932,16796.0,16795.0,0.06957785]
[1672996738825,1.19863932,16796.0,16795.0,0.06957785]
[1672996739031,1.49933932,16796.0,16795.0,0.06957785]
[1672996739351,0.89793932,16796.0,16795.0,0.06957785]
[1672996739558,1.49933932,16796.0,16795.0,0.06957785]
[1672996750917,1.49924143,16796.0,16795.0,0.06957785]
[1672996761751,2.09384143,16796.0,16795.0,0.06957785]
[1672996761960,2.09384143,16796.0,16795.0,1e-08]
[1672996767528,2.39384143,16796.0,16795.0,1e-08]
[1672996770257,2.09384143,16796.0,16795.0,1e-08]
[1672996771622,0.5946,16793.0,16790.0,1.105]
[1672996771838,0.6014,16791.0,16788.0,0.322]
[1672996772042,0.3007,16789.0,16787.0,0.3]
[1672996772253,0.3007,16789.0,16788.0,0.2]
[1672996772784,1.18130769,16789.0,16788.0,0.2]
[1672996774153,1.19130769,16789.0,16788.0,0.27]
[1672996774363,1.18130769,16789.0,16788.0,0.2]
[1672996774568,1.19230769,16789.0,16788.0,0.27]
[1672996778779,0.89160769,16789.0,16788.0,0.27]
[1672996782556,0.89160769,16789.0,16788.0,0.35936964]
[1672996783406,0.89160769,16789.0,16788.0,0.27]
[1672996783833,0.89160769,16789.0,16788.0,0.35936964]
[1672996786666,0.89160769,16789.0,16788.0,0.49335064]
[1672996786870,0.89160769,16789.0,16788.0,0.35936964]
[1672996790026,0.89160769,16789.0,16788.0,0.27]
[1672996790979,0.89160769,16789.0,16788.0,0.35936964]
[1672996795190,0.89160769,16789.0,16788.0,0.49335064]
[1672996795613,0.89160769,16789.0,16788.0,0.35936964]
[1672996797599,0.89160769,16789.0,16788.0,0.49335064]
[1672996799699,0.89160769,16789.0,16788.0,0.35936964]
[1672996800229,0.89160769,16789.0,16788.0,0.49335064]
[1672996800757,0.89160769,16789.0,16788.0,0.29335064]
[1672996801074,1.19230769,16789.0,16788.0,0.07]
[1672996808215,0.2,16788.0,16786.0,0.089]
[1672996808431,0.5946,16786.0,16781.0,0.08936964]
[1672996808641,0.6014,16782.0,16780.0,2.0]
[1672996809061,0.8903942,16781.0,16780.0,2.0]
[1672996810110,0.9043942,16781.0,16780.0,2.3007]
[1672996810325,0.014,16781.0,16780.0,2.3007]
[1672996810741,0.3007,16785.0,16781.0,0.2]
[1672996810955,0.3007,16785.0,16783.0,0.3007]
[1672996811371,0.3007,16785.0,16784.0,0.2]
[1672996811793,1.18877714,16785.0,16784.0,0.2]
[1672996812316,1.20277714,16785.0,16784.0,0.2]
[1672996812742,1.18877714,16785.0,16784.0,0.2]
[1672996813059,1.20377714,16785.0,16784.0,0.225]
[1672996813798,0.90307714,16785.0,16784.0,0.225]
[1672996817282,1.20377714,16785.0,16784.0,0.225]
[1672996820742,1.20377714,16785.0,16784.0,0.025]
[1672996826729,1.50447714,16785.0,16784.0,0.025]
[1672996840722,1.20377714,16785.0,16784.0,0.025]
[1672996856706,1.50447714,16785.0,16784.0,0.025]
[1672996863224,1.50447714,16785.0,16784.0,0.02484071]
[1672996870689,0.90307714,16785.0,16784.0,0.02484071]
[1672996870902,1.20377714,16785.0,16784.0,0.02484071]
[1672996880787,1.50447714,16785.0,16784.0,0.02484071]
[1672996885194,2.39907714,16785.0,16784.0,0.02484071]
[1672996886352,2.39907714,16785.0,16780.0,2.0]
[1672996886353,0.2,16782.0,16780.0,2.0]
[1672996886569,0.6014,16781.0,16780.0,2.0]
[1672996886775,1.49480557,16781.0,16780.0,2.0]
[1672996888037,1.51180557,16781.0,16780.0,1.99165698]
[1672996888248,2.10640557,16781.0,16780.0,1.92315698]
[1672996889082,1.51180557,16781.0,16780.0,1.92315698]
[1672996896894,1.50880557,16781.0,16780.0,1.92315698]
[1672996914428,2.10340557,16781.0,16780.0,1.92315698]
[1672996918418,2.10340557,16781.0,16780.0,1.62245698]
[1672996918419,1.80270557,16781.0,16780.0,1.62245698]
[1672996918635,2.10340557,16781.0,16780.0,1.62245698]
[1672996919371,2.10340557,16781.0,16780.0,0.60182062]
[1672996920105,2.22340557,16781.0,16780.0,0.60182062]
[1672996949324,1.62880557,16781.0,16780.0,0.60182062]
[1672996967711,1.32810557,16781.0,16780.0,0.60165874]
[1672996967927,1.02740557,16781.0,16780.0,0.60165874]
[1672996968239,1.62880557,16781.0,16780.0,0.60165874]
[1672996969712,1.62880557,16781.0,16780.0,0.23665874]
[1672997002291,1.32810557,16781.0,16780.0,0.23665874]
[1672997016064,1.32810557,16781.0,16780.0,0.23658714]
[1672997046436,1.02740557,16781.0,16780.0,0.83118714]
[1672997046645,1.02740557,16781.0,16780.0,0.92055678]
[1672997046846,1.02740557,16781.0,16780.0,0.83118714]
[1672997047591,1.02740557,16781.0,16780.0,0.92055678]
[1672997047792,1.02740557,16781.0,16780.0,0.83118714]
[1672997050733,1.02740557,16781.0,16780.0,0.92055678]
[1672997054407,1.02740557,16781.0,16780.0,1.05453778]
[1672997055573,0.134,16781.0,16780.0,1.05453778]
[1672997056205,0.134,16781.0,16780.0,0.92055678]
[1672997057476,0.134,16781.0,16780.0,1.05453778]
[1672997057986,0.6014,16786.0,16780.0,0.96516814]
[1672997058198,0.3007,16786.0,16782.0,0.98465867]
[1672997058408,0.3007,16786.0,16783.0,0.2]
[1672997058618,0.89070298,16785.0,16783.0,0.28935867]
[1672997059040,0.89070298,16785.0,16783.0,0.2]
[1672997059260,0.94839222,16786.0,16783.0,0.28935867]
[1672997059573,0.058,16785.0,16783.0,0.211]
[1672997059883,0.88716476,16784.0,16783.0,0.8056]
[1672997061661,0.94116476,16784.0,16783.0,0.8056]
[1672997061876,0.3007,16788.0,16784.0,0.2]
[1672997062092,0.3007,16788.0,16784.0,1.0953]
[1672997062295,0.3007,16788.0,16785.0,0.1]
[1672997062505,0.89128753,16787.0,16785.0,0.1]
[1672997063249,0.89128753,16787.0,16785.0,0.111]
[1672997064615,0.89528753,16787.0,16785.0,0.111]
[1672997064825,0.89128753,16787.0,16785.0,0.1]
[1672997065033,0.89528753,16787.0,16785.0,0.101]
[1672997065443,0.89528753,16787.0,16785.0,0.109]
[1672997065444,0.89128753,16787.0,16785.0,0.109]
[1672997066290,0.3007,16788.0,16787.0,0.5946]
[1672997067659,0.3047,16788.0,16787.0,0.6026]
[1672997072825,0.004,16788.0,16787.0,0.008]
[1672997073141,0.004,16788.0,16787.0,0.6026]
[1672997077762,0.004,16788.0,16787.0,0.008]
[1672997092373,0.004,16788.0,16787.0,0.6026]
[1672997108870,0.004,16788.0,16787.0,0.60237883]
[1672997110344,0.004,16788.0,16787.0,0.6917375]
[1672997112131,0.004,16788.0,16787.0,0.8257185]
[1672997112867,0.004,16788.0,16787.0,0.60237883]
[1672997120542,0.004,16788.0,16787.0,0.6917375]
[1672997123169,0.004,16788.0,16787.0,4.4617375]
[1672997123391,0.3007,16791.0,16789.0,0.5946]
[1672997123596,0.5007,16791.0,16790.0,0.7946]
[1672997123806,0.3007,16791.0,16790.0,0.7946]
[1672997124334,0.3017,16791.0,16790.0,0.7946]
[1672997125273,0.3017,16791.0,16790.0,0.8056]
[1672997127069,0.001,16791.0,16790.0,0.8056]
[1672997135464,0.001,16791.0,16790.0,1.1063]
[1672997137241,0.001,16791.0,16790.0,1.1053]
[1672997150500,0.001,16791.0,16790.0,1.19462565]
[1672997151336,0.001,16791.0,16790.0,1.1053]
[1672997154703,0.001,16791.0,16790.0,1.19462565]
[1672997154913,0.001,16791.0,16790.0,1.1053]
[1672997155540,0.001,16791.0,16790.0,1.19462565]
[1672997156493,0.001,16791.0,16790.0,1.1053]
[1672997157438,0.001,16791.0,16790.0,1.19462565]
[1672997157649,0.3007,16794.0,16790.0,1.18462565]
[1672997157857,0.001,16791.0,16790.0,1.19462565]
[1672997158169,0.001,16791.0,16790.0,1.1053]
[1672997160276,0.001,16791.0,16790.0,0.8046]
[1672997165424,0.001,16791.0,16790.0,0.89392565]
[1672997171308,0.001,16791.0,16790.0,1.02790665]
[1672997173198,0.001,16791.0,16790.0,0.8046]
[1672997175722,0.001,16791.0,16790.0,1.1053]
[1672997176663,0.001,16791.0,16790.0,1.10518379]
[1672997180552,0.001,16791.0,16790.0,1.32849044]
[1672997180757,0.001,16791.0,16790.0,1.32852401]
[1672997182229,0.001,16791.0,16790.0,1.19454301]
[1672997184548,0.001,16791.0,16790.0,1.32852401]
[1672997185593,0.001,16791.0,16790.0,0.89384301]
[1672997186014,0.001,16791.0,16790.0,0.80448379]
[1672997187380,0.001,16791.0,16790.0,0.20988379]
[1672997194223,0.3017,16791.0,16790.0,0.20988379]
[1672997197064,0.001,16791.0,16790.0,0.20988379]
[1672997197372,0.3017,16791.0,16790.0,0.20988379]
[1672997198743,0.001,16791.0,16790.0,0.20988379]
[1672997199057,0.3017,16791.0,16790.0,0.20988379]
[1672997206089,0.2867,16791.0,16790.0,0.20988379]
[1672997211144,0.3007,16791.0,16790.0,0.20988379]
[1672997221748,0.3007,16791.0,16790.0,0.01]
[1672997221959,1.19076424,16791.0,16790.0,0.01]
[1672997229731,0.89006424,16791.0,16790.0,0.01]
[1672997229937,1.49146424,16791.0,16790.0,0.01]
[1672997230569,0.89006424,16791.0,16790.0,0.01]
[1672997230781,1.49146424,16791.0,16790.0,0.01]
[1672997240657,1.19076424,16791.0,16790.0,0.01]
[1672997240868,1.49146424,16791.0,16790.0,0.01]
[1672997242553,0.89006424,16791.0,16790.0,0.01]
[1672997242760,1.49146424,16791.0,16790.0,0.01]
[1672997245075,0.89006424,16791.0,16790.0,0.01]
[1672997245283,1.49146424,16791.0,16790.0,0.01]
[1672997253386,1.49146424,16791.0,16790.0,0.00981809]
[1672997256227,1.19076424,16791.0,16790.0,0.00981809]
[1672997256963,0.89006424,16791.0,16790.0,0.00981809]
[1672997257275,0.3007,16791.0,16790.0,0.00981809]
[1672997257486,0.5007,16791.0,16790.0,0.00981809]
[1672997257690,1.39232026,16791.0,16790.0,0.00981809]
[1672997258531,1.09162026,16791.0,16790.0,0.00981809]
[1672997258745,1.39232026,16791.0,16790.0,0.00981809]
[1672997259486,1.09162026,16791.0,16790.0,0.00981809]
[1672997259698,1.39232026,16791.0,16790.0,0.00981809]
[1672997260122,1.19232026,16791.0,16790.0,0.00981809]
[1672997261908,0.89162026,16791.0,16790.0,0.00981809]
[1672997262222,0.3007,16791.0,16790.0,0.00981809]
[1672997262432,0.5007,16791.0,16790.0,0.00981809]
[1672997262647,1.3873839,16791.0,16790.0,0.00981809]
[1672997263274,1.1873839,16791.0,16790.0,0.00981809]
[1672997264644,1.1873839,16791.0,16790.0,0.01]
[1672997264856,1.1873839,16791.0,16790.0,0.21]
[1672997265166,1.1873839,16791.0,16790.0,0.201]
[1672997269256,0.8866839,16791.0,16790.0,0.201]
[1672997271800,0.8866839,16791.0,16790.0,0.7969]
[1672997289255,0.8866839,16791.0,16790.0,0.7959]
[1672997289457,0.8866839,16791.0,16790.0,0.9359]
[1672997292188,0.3007,16793.0,16790.0,0.9359]
[1672997292404,0.3007,16793.0,16791.0,0.3007]
[1672997292609,0.3007,16793.0,16792.0,0.2]
[1672997293032,1.19681893,16793.0,16792.0,0.2]
[1672997293236,0.89611893,16793.0,16792.0,0.2]
[1672997293558,0.3007,16794.0,16792.0,0.2]
[1672997293991,0.89282424,16793.0,16792.0,0.201]
[1672997295155,0.89282424,16793.0,16792.0,0.207]
[1672997295578,0.89282424,16793.0,16792.0,0.2]
[1672997295885,0.89282424,16793.0,16792.0,0.201]
[1672997298617,1.19352424,16793.0,16792.0,0.201]
[1672997299037,0.3007,16793.0,16792.0,0.201]
[1672997299248,1.38106137,16793.0,16792.0,0.201]
[1672997300083,1.08036137,16793.0,16792.0,0.201]
[1672997300506,1.08036137,16793.0,16792.0,0.20093209]
[1672997300507,1.38106137,16793.0,16792.0,0.20093209]
[1672997311651,1.38106137,16793.0,16792.0,0.001]
[1672997324901,1.08036137,16793.0,16792.0,0.001]
[1672997325113,1.38106137,16793.0,16792.0,0.001]
[1672997328901,1.08036137,16793.0,16792.0,0.001]
[1672997329100,1.38106137,16793.0,16792.0,0.001]
[1672997335411,1.08036137,16793.0,16792.0,0.001]
[1672997335627,1.68176137,16793.0,16792.0,0.001]
[1672997341731,1.38106137,16793.0,16792.0,0.001]
[1672997347812,1.38106137,16793.0,16792.0,0.0008025]
[1672997376833,1.08036137,16793.0,16792.0,0.0008025]
[1672997377050,1.38106137,16793.0,16792.0,0.0008025]
[1672997396821,1.38106137,16793.0,16792.0,0.00070255]
[1672997398712,1.08036137,16793.0,16792.0,0.00070255]
[1672997398928,1.38106137,16793.0,16792.0,0.00070255]
[1672997400607,1.08036137,16793.0,16792.0,0.00070255]
[1672997400815,1.38106137,16793.0,16792.0,0.00070255]
[1672997449924,1.38106137,16793.0,16792.0,0.00062588]
[1672997469157,1.68176137,16793.0,16792.0,0.00062588]
[1672997469368,1.08036137,16793.0,16792.0,0.00062588]
[1672997469577,1.68176137,16793.0,16792.0,0.00062588]
[1672997469796,1.08036137,16793.0,16792.0,0.00062588]
[1672997470006,1.68176137,16793.0,16792.0,0.00062588]
[1672997470219,1.08036137,16793.0,16792.0,0.00062588]
[1672997470431,1.68176137,16793.0,16792.0,0.00062588]
[1672997472530,1.38106137,16793.0,16792.0,0.00062588]
[1672997472744,1.68176137,16793.0,16792.0,0.00062588]
[1672997473693,1.08036137,16793.0,16792.0,0.00062588]
[1672997474001,1.68176137,16793.0,16792.0,0.00062588]
[1672997477052,1.08036137,16793.0,16792.0,0.00062588]
[1672997477264,1.68176137,16793.0,16792.0,0.00062588]
[1672997478206,1.08036137,16793.0,16792.0,0.00062588]
[1672997478413,1.68176137,16793.0,16792.0,0.00062588]
[1672997484616,1.38106137,16793.0,16792.0,0.00062588]
[1672997484834,1.68176137,16793.0,16792.0,0.00062588]
[1672997496831,1.68176137,16793.0,16792.0,0.00052213]
[1672997497029,1.38106137,16793.0,16792.0,0.00052213]
[1672997502302,1.68176137,16793.0,16792.0,0.00052213]
[1672997507034,1.38106137,16793.0,16792.0,0.00052213]
[1672997507348,1.68176137,16793.0,16792.0,0.00052213]
[1672997516902,1.08036137,16793.0,16792.0,0.00052213]
[1672997517115,1.68176137,16793.0,16792.0,0.00052213]
[1672997517536,1.08036137,16793.0,16792.0,0.00052213]
[1672997517857,1.68176137,16793.0,16792.0,0.00052213]
[1672997519120,1.08036137,16793.0,16792.0,0.00052213]
[1672997519330,1.68176137,16793.0,16792.0,0.00052213]
[1672997527836,1.38106137,16793.0,16792.0,0.00052213]
[1672997532773,1.08036137,16793.0,16792.0,0.00052213]
[1672997532993,1.38106137,16793.0,16792.0,0.00052213]
[1672997533609,1.08036137,16793.0,16792.0,0.00052213]
[1672997533828,1.38106137,16793.0,16792.0,0.00052213]
[1672997536872,1.08036137,16793.0,16792.0,0.00052213]
[1672997537089,1.38106137,16793.0,16792.0,0.00052213]
[1672997537826,1.08036137,16793.0,16792.0,0.00052213]
[1672997538033,1.38106137,16793.0,16792.0,0.00052213]
[1672997540778,1.08036137,16793.0,16792.0,0.00052213]
[1672997541087,1.38106137,16793.0,16792.0,0.00052213]
[1672997542031,1.38106137,16793.0,16792.0,0.00028887]
[1672997546660,1.08036137,16793.0,16792.0,0.00028887]
[1672997546978,1.38106137,16793.0,16792.0,0.00028887]
[1672997556754,1.68176137,16793.0,16792.0,0.00028887]
[1672997559803,1.38106137,16793.0,16792.0,0.00028887]
[1672997578849,1.68176137,16793.0,16792.0,0.00028887]
[1672997586097,1.68154429,16793.0,16792.0,0.00028887]
[1672997605126,1.38084429,16793.0,16792.0,0.00028887]
[1672997608072,1.08014429,16793.0,16792.0,0.00028887]
[1672997608490,1.38084429,16793.0,16792.0,0.00028887]
[1672997624463,1.08014429,16793.0,16792.0,0.00028887]
[1672997624675,1.38084429,16793.0,16792.0,0.00028887]
[1672997630970,1.08014429,16793.0,16792.0,0.00028887]
[1672997631182,1.38084429,16793.0,16792.0,0.00021527]
[1672997676429,1.38084429,16793.0,16792.0,0.08958386]
[1672997676961,1.38084429,16793.0,16792.0,0.00021527]
[1672997677274,5.2e-06,16792.0,16791.0,0.33405289]
[1672997678425,0.0010052,16792.0,16791.0,0.42805289]
[1672997678735,0.0010052,16792.0,16791.0,0.517433]
[1672997679257,0.0010052,16792.0,16791.0,0.42805289]
[1672997683881,0.0010052,16792.0,16791.0,0.294]
[1672997691314,0.0010052,16792.0,16791.0,0.51742543]
[1672997692476,0.0010052,16792.0,16791.0,0.42805289]
[1672997692795,0.0010052,16792.0,16791.0,0.51743811]
[1672997693424,0.0010052,16792.0,16791.0,0.38338522]
[1672997694889,0.0010052,16792.0,16791.0,0.51743811]
[1672997695099,0.0010052,16792.0,16791.0,0.38338522]
[1672997696049,0.0010052,16792.0,16791.0,0.51743811]
[1672997697306,0.00081692,16792.0,16791.0,0.51743811]
[1672997698676,0.00081692,16792.0,16791.0,0.38338522]
[1672997700045,0.00081692,16792.0,16791.0,0.51743811]
[1672997700457,0.00081692,16792.0,16791.0,0.38338522]
[1672997701091,0.00081692,16792.0,16791.0,0.51743811]
[1672997701296,0.00081692,16792.0,16791.0,0.38338522]
[1672997703299,0.00081692,16792.0,16791.0,0.51743811]
[1672997704247,0.00081692,16792.0,16791.0,0.38338522]
[1672997705293,0.00081692,16792.0,16791.0,0.51743811]
[1672997705504,0.00081692,16792.0,16791.0,0.38338522]
[1672997705713,0.00081692,16792.0,16791.0,0.51743811]
[1672997706134,0.00081692,16792.0,16791.0,0.38338522]
[1672997706450,0.00081692,16792.0,16791.0,0.294]
[1672997713914,0.00081692,16792.0,16791.0,0.38338522]
[1672997714232,0.00081692,16792.0,16791.0,0.51743811]
[1672997714442,0.00081692,16792.0,16791.0,0.38338522]
[1672997721388,0.00081692,16792.0,16791.0,0.294]
[1672997728852,0.00081692,16792.0,16791.0,0.51743811]
[1672997731169,0.00081692,16792.0,16791.0,0.38338522]
[1672997731381,0.00081692,16792.0,16791.0,0.51743811]
[1672997731592,0.00081692,16792.0,16791.0,0.38338522]
[1672997732642,0.00081692,16792.0,16791.0,0.51743811]
[1672997732856,0.00081692,16792.0,16791.0,0.38338522]
[1672997735360,0.00081692,16792.0,16791.0,0.51743811]
[1672997736422,0.00081692,16792.0,16791.0,0.294]
[1672997743992,0.00081692,16792.0,16791.0,0.51743811]
[1672997745050,0.00081692,16792.0,16791.0,0.51721415]
[1672997745459,0.00081692,16792.0,16791.0,0.38316126]
[1672997745785,0.20081692,16792.0,16791.0,0.29377604]
[1672997745997,0.00081692,16792.0,16791.0,0.29377604]
[1672997746838,0.00081692,16792.0,16791.0,0.38316126]
[1672997747043,0.00081692,16792.0,16791.0,0.29377604]
[1672997747566,0.20081692,16792.0,16791.0,0.29377604]
[1672997750093,0.00622396,16790.0,16788.0,0.81933811]
[1672997750299,0.30692396,16790.0,16789.0,0.2]
[1672997751455,0.31692396,16790.0,16789.0,0.276]
[1672997754092,0.31681749,16790.0,16789.0,0.276]
[1672997758924,0.31681749,16790.0,16789.0,0.36538522]
[1672997759345,0.31681749,16790.0,16789.0,0.276]
[1672997759757,0.31681749,16790.0,16789.0,0.36538522]
[1672997761983,0.31681749,16790.0,16789.0,0.276]
[1672997762182,0.01611749,16790.0,16789.0,0.276]
[1672997762607,0.01611749,16790.0,16789.0,0.36538522]
[1672997766500,0.01611749,16790.0,16789.0,0.276]
[1672997779213,0.01611749,16790.0,16789.0,0.36538522]
[1672997785321,0.01611749,16790.0,16789.0,0.49943811]
[1672997789006,0.01611749,16790.0,16789.0,0.276]
[1672997792471,0.01711749,16790.0,16789.0,0.27]
[1672997796457,0.01711749,16790.0,16789.0,0.35938522]
[1672997798149,0.01711749,16790.0,16789.0,0.35917369]
[1672997804036,0.01711749,16790.0,16789.0,0.26978847]
[1672997816021,0.28796311,16791.0,16790.0,0.2]
[1672997817074,0.2,16792.0,16790.0,0.2]
[1672997817391,0.3007,16791.0,16790.0,0.2]
[1672997817599,0.3067,16791.0,16790.0,0.262]
[1672997817810,1.19828237,16791.0,16790.0,0.262]
[1672997818437,1.19228237,16791.0,16790.0,0.201]
[1672997819070,1.19828237,16791.0,16790.0,0.262]
[1672997829897,0.89758237,16791.0,16790.0,0.262]
[1672997830096,1.19828237,16791.0,16790.0,0.262]
[1672997833150,0.89758237,16791.0,16790.0,0.262]
[1672997833357,1.19828237,16791.0,16790.0,0.262]
[1672997838944,0.89758237,16791.0,16790.0,0.262]
[1672997839155,1.19828237,16791.0,16790.0,0.262]
[1672997841775,1.49898237,16791.0,16790.0,0.262]
[1672997844399,1.49898237,16791.0,16790.0,0.062]
[1672997857460,0.2,16790.0,16787.0,0.2]
[1672997857668,0.6014,16788.0,16787.0,0.2]
[1672997857979,0.60332772,16788.0,16785.0,0.2]
[1672997858193,0.3007,16786.0,16785.0,0.2]
[1672997858601,1.19376823,16786.0,16783.0,0.2]
[1672997858823,0.3007,16784.0,16783.0,0.2]
[1672997859766,0.3167,16784.0,16783.0,0.2]
[1672997864079,0.3167,16784.0,16782.0,0.2]
[1672997864288,0.6174,16784.0,16780.0,1.34948714]
[1672997864602,1.0948155,16783.0,16781.0,0.2]
[1672997864809,0.3007,16782.0,16781.0,0.2]
[1672997865023,0.5007,16782.0,16781.0,0.2]
[1672997865337,1.38613151,16782.0,16781.0,0.2]
[1672997866700,1.40013151,16782.0,16781.0,0.217]
[1672997868178,1.40013151,16782.0,16781.0,0.017]
[1672997869017,1.38613151,16782.0,16781.0,0.2]
[1672997869226,1.40013151,16782.0,16781.0,0.216]
[1672997869548,1.38613151,16782.0,16780.0,0.23658714]
[1672997869862,1.70083151,16782.0,16781.0,0.016]
[1672997870279,1.70083151,16782.0,16781.0,0.216]
[1672997870598,1.68683151,16782.0,16781.0,0.2]
[1672997870809,1.70083151,16782.0,16781.0,0.2]
[1672997871226,1.09943151,16782.0,16781.0,0.2]
[1672997871429,1.70083151,16782.0,16781.0,0.2]
[1672997871855,1.70083151,16782.0,16781.0,0.216]